[Event "13th Palmanova Festival A 2024"]
[Site "Palmanova"]
[Date "2024.12.30"]
[Round "5.1"]
[White "Martinovici, Ilia"]
[Black "Pegno, Mattia"]
[Result "1-0"]
[ECO "D02"]
[WhiteElo "2473"]
[BlackElo "2243"]
[Annotator "RC"]
[PlyCount "63"]
[EventDate "2024.12.27"]
[EventCountry "ITA"]
[SourceTitle "playchess.com"]
[Source "ChessBase"]
[SourceQuality "1"]
[TimeControl "6000+30"]

1. d4 {[%emt 0:03:36]} d5 {[%emt 0:03:27]} 2. Nf3 {[%emt 0:00:09]} Nf6 {[%emt 0:00:10]} 3. c3 {[%emt 0:00:05]} e6 {[%emt 0:02:16]} 4. Bf4 {[%emt 0:00:07]} Bd6 {[%emt 0:04:59]} 5. e3 {[%emt 0:00:06]} O-O {[%emt 0:00:06]} 6. Bd3 {[%emt 0:02:28]} c5 {[%emt 0:01:57]} 7. Nbd2 {[%emt 0:01:09]} Bxf4 {[%emt 0:04:41]} 8. exf4 {[%emt 0:00:05]} cxd4 {[%emt 0:02:51]} 9. Nxd4 {[%emt 0:00:47]} Nbd7 {[%emt 0:07:04]} 10. O-O {[%emt 0:03:02]} Nc5 {[%emt 0:02:46]} 11. Bc2 {[%emt 0:01:36]} b6 {[%emt 0:04:12]} 12. Re1 {[%emt 0:01:11]} Bb7 {[%emt 0:01:16]} 13. f5 {[%emt 0:04:41]} Qd6 {[%emt 0:10:37]} 14. b4 {[%emt 0:08:40]} Nce4 {[%emt 0:08:51]} 15. Nxe4 {[%emt 0:00:24]} Nxe4 {[%emt 0:00:51]} 16. fxe6 {[%emt 0:02:22]} fxe6 {[%emt 0:04:23]} 17. f3 {[%emt 0:02:10]} Ng5 {[%emt 0:25:44]} 18. Qd2 {[%emt 0:00:30]} Qf4 {[%emt 0:04:40]} 19. Qxf4 {[%emt 0:00:19]} Rxf4 {[%emt 0:00:09]} 20. Nxe6 {[%emt 0:00:52]} Nxe6 {[%emt 0:00:16]} 21. Rxe6 {[%emt 0:00:03]} Rc8 {[%emt 0:01:40]} 22. Re7 {[%emt 0:04:58]} Rf7 {[%emt 0:09:53]} 23. Bxh7+ {[%emt 0:00:26]} Kf8 {[%emt 0:00:06]} 24. Re3 {[%emt 0:00:03]} g5 {[%emt 0:04:18]} 25. Bg6 {[%emt 0:01:11]} Rf6 {[%emt 0:01:34]} 26. Bh5 {[%emt 0:00:17]} Rfc6 {[%emt 0:00:40]} 27. Rae1 {[%emt 0:02:51]} R8c7 {[%emt 0:03:40]} 28. Re8+ {[%emt 0:01:55]} Kg7 {[%emt 0:00:04]} 29. R1e5 {[%emt 0:04:28]} Rxc3 {[%emt 0:00:59]} 30. Rxg5+ {[%emt 0:00:07]} Kh7 {[%emt 0:00:38]} 31. Bg4 {[%emt 0:00:46]} Bc8 {[%emt 0:00:32]} 32. Bxc8 {[%emt 0:01:27]} 1-0

[Event "13th Palmanova Festival A 2024"]
[Site "Palmanova"]
[Date "2024.12.30"]
[Round "5.2"]
[White "Bettalli, Francesco"]
[Black "Dobrovoljc, Vid"]
[Result "1-0"]
[ECO "B90"]
[WhiteElo "2359"]
[BlackElo "2365"]
[Annotator "ChessBase"]
[PlyCount "119"]
[EventDate "2024.12.27"]
[EventCountry "ITA"]
[SourceTitle "playchess.com"]
[Source "ChessBase"]
[SourceQuality "1"]
[TimeControl "6000+30"]

1. e4 {[%emt 0:01:22]} c5 {[%emt 0:07:13]} 2. Nf3 {[%emt 0:00:27]} d6 {[%emt 0:00:14]} 3. d4 {[%emt 0:00:16]} cxd4 {[%emt 0:00:11]} 4. Nxd4 {[%emt 0:00:22]} Nf6 {[%emt 0:00:08]} 5. Nc3 {[%emt 0:00:06]} a6 {[%emt 0:00:21]} 6. Qd3 {[%emt 0:01:18]} Nbd7 {[%emt 0:15:24]} 7. Be2 {[%emt 0:00:14]} Nc5 {[%emt 0:12:55]} 8. Qe3 {[%emt 0:00:15]} g6 {[%emt 0:04:40]} 9. e5 {[%emt 0:26:23]} dxe5 {[%emt 0:13:12]} 10. Qxe5 {[%emt 0:01:36]} Ncd7 {[%emt 0:03:47]} 11. Qg3 {[%emt 0:01:32]} e5 {[%emt 0:03:53]} 12. Nb3 {[%emt 0:02:44]} Bg7 {[%emt 0:01:58]} 13. f4 {[%emt 0:06:29]} e4 {[%emt 0:01:52]} 14. f5 {[%emt 0:03:17]} b5 {[%emt 0:10:20]} 15. Bf4 {[%emt 0:07:40]} Bb7 {[%emt 0:06:12]} 16. Bc7 {[%emt 0:07:52]} Qc8 {[%emt 0:00:04]} 17. Bd6 {[%emt 0:00:17]} Bf8 {[%emt 0:07:08]} 18. fxg6 {[%emt 0:04:30]} hxg6 {[%emt 0:02:12]} 19. O-O-O {[%emt 0:02:35]} Bxd6 {[%emt 0:03:12]} 20. Rxd6 {[%emt 0:00:48]} Qc7 {[%emt 0:00:42]} 21. Rhd1 {[%emt 0:02:50]} Rc8 {[%emt 0:06:03]} 22. a3 {[%emt 0:08:09]} O-O {[%emt 0:01:38]} 23. h4 {[%emt 0:01:02]} Ne8 {[%emt 0:01:31]} 24. h5 {[%emt 0:01:46]} Nxd6 {[%emt 0:00:19]} 25. Rxd6 {[%emt 0:00:55]} Nf6 {[%emt 0:03:29]} 26. hxg6 {[%emt 0:03:11]} fxg6 {[%emt 0:00:25]} 27. Nd4 {[%emt 0:00:43]} Qh7 {[%emt 0:01:08]} 28. Qg5 {[%emt 0:02:49]} Qf7 {[%emt 0:02:29]} 29. Ne6 {[%emt 0:09:44]} Nh7 {[%emt 0:00:43]} 30. Qh6 {[%emt 0:01:00]} Kh8 {[%emt 0:01:35]} 31. Nxf8 {[%emt 0:01:08]} Rxf8 {[%emt 0:00:08]} 32. Rxg6 {[%emt 0:00:34]} Qf4+ {[%emt 0:00:43]} 33. Qxf4 {[%emt 0:00:20]} Rxf4 {[%emt 0:00:06]} 34. Kd2 {[%emt 0:00:18]} Rf7 {[%emt 0:00:08]} 35. Ke3 {[%emt 0:00:31]} Nf6 {[%emt 0:00:18]} 36. Rg5 {[%emt 0:01:33]} Kh7 {[%emt 0:00:44]} 37. Rg3 {[%emt 0:02:53]} Kh6 {[%emt 0:00:24]} 38. b4 {[%emt 0:03:41]} Rf8 {[%emt 0:00:42]} 39. Kd2 {[%emt 0:00:42]} Ng8 {[%emt 0:00:45]} 40. a4 {[%emt 0:00:56]} Ne7 {[%emt 0:00:46]} 41. axb5 {[%emt 0:01:05]} axb5 {[%emt 0:00:00]} 42. Nxb5 {[%emt 0:00:00]} Nf5 {[%emt 0:00:00]} 43. Rh3+ {[%emt 0:00:00]} Kg5 {[%emt 0:00:00]} 44. g4 {[%emt 0:00:00]} Rd8+ {[%emt 0:00:00]} 45. Kc3 {[%emt 0:00:00]} Nh4 {[%emt 0:00:00]} 46. Nd4 {[%emt 0:00:00]} Bc8 {[%emt 0:00:00]} 47. Rh1 {[%emt 0:00:00]} Ng6 {[%emt 0:00:00]} 48. b5 {[%emt 0:00:00]} Nf4 {[%emt 0:00:00]} 49. Bc4 {[%emt 0:00:00]} Kxg4 {[%emt 0:00:00]} 50. Rg1+ {[%emt 0:00:00]} Kh4 {[%emt 0:00:00]} 51. b6 {[%emt 0:00:00]} Rd7 {[%emt 0:00:00]} 52. Nf5+ {[%emt 0:00:00]} Kh3 {[%emt 0:00:00]} 53. Ne3 {[%emt 0:00:00]} Rd6 {[%emt 0:00:00]} 54. Rb1 {[%emt 0:00:00]} Rd7 {[%emt 0:00:00]} 55. Rg1 {[%emt 0:00:00]} Rb7 {[%emt 0:00:00]} 56. Ba6 {[%emt 0:01:32]} Ne2+ {[%emt 0:00:00]} 57. Bxe2 {[%emt 0:00:07]} Rxb6 {[%emt 0:00:00]} 58. Kd4 {[%emt 0:02:45]} Bb7 {[%emt 0:00:00]} 59. Bc4 {[%emt 0:01:05]} Rd6+ {[%emt 0:00:00]} 60. Bd5 {[%emt 0:00:21]} 1-0

[Event "13th Palmanova Festival A 2024"]
[Site "Palmanova"]
[Date "2024.12.30"]
[Round "5.3"]
[White "Lumachi, Gabriele"]
[Black "Di Benedetto, Edoardo"]
[Result "1/2-1/2"]
[ECO "B33"]
[WhiteElo "2438"]
[BlackElo "2411"]
[Annotator "RC"]
[PlyCount "78"]
[EventDate "2024.12.27"]
[EventCountry "ITA"]
[SourceTitle "playchess.com"]
[Source "ChessBase"]
[SourceQuality "1"]
[TimeControl "6000+30"]

1. e4 {[%emt 0:00:03]} c5 {[%emt 0:02:00]} 2. Nf3 {[%emt 0:01:39]} Nc6 {[%emt 0:00:21]} 3. d4 {[%emt 0:00:15]} cxd4 {[%emt 0:00:07]} 4. Nxd4 {[%emt 0:00:06]} e5 {[%emt 0:02:12]} 5. Nb5 {[%emt 0:00:28]} d6 {[%emt 0:00:08]} 6. N1c3 {[%emt 0:05:23]} Nf6 {[%emt 0:00:27]} 7. Bg5 {[%emt 0:00:37]} a6 {[%emt 0:00:06]} 8. Na3 {[%emt 0:00:06]} b5 {[%emt 0:00:15]} 9. Nab1 {[%emt 0:00:08]} Be7 {[%emt 0:00:53]} 10. Bxf6 {[%emt 0:00:09]} Bxf6 {[%emt 0:01:22]} 11. a4 {[%emt 0:00:08]} b4 {[%emt 0:03:30]} 12. Nd5 {[%emt 0:00:05]} O-O {[%emt 0:03:14]} 13. Bc4 {[%emt 0:00:05]} Bg5 {[%emt 0:03:41]} 14. O-O {[%emt 0:00:08]} Kh8 {[%emt 0:04:59]} 15. c3 {[%emt 0:00:10]} bxc3 {[%emt 0:01:58]} 16. Nbxc3 {[%emt 0:00:12]} f5 {[%emt 0:09:49]} 17. exf5 {[%emt 0:13:02]} Bxf5 {[%emt 0:02:13]} 18. Bd3 {[%emt 0:00:10]} Be6 {[%emt 0:01:08]} 19. b4 {[%emt 0:01:28]} Rb8 {[%emt 0:08:10]} 20. Rb1 {[%emt 0:11:21]} Ne7 {[%emt 0:26:35]} 21. Bxa6 {[%emt 0:07:53]} Nxd5 {[%emt 0:00:06]} 22. Nxd5 {[%emt 0:00:05]} Bxd5 {[%emt 0:00:25]} 23. Qxd5 {[%emt 0:00:07]} Rf4 {[%emt 0:00:14]} 24. a5 {[%emt 0:54:43]} Qf6 {[%emt 0:02:32]} 25. Bb7 {[%emt 0:03:47]} Rf8 {[%emt 0:00:28]} 26. Qa2 {[%emt 0:02:09]} Rd4 {[%emt 0:01:17]} 27. Rb2 {[%emt 0:01:19]} e4 {[%emt 0:02:35]} 28. a6 {[%emt 0:01:02]} Qe7 {[%emt 0:00:08]} 29. Re2 {[%emt 0:05:19]} e3 {[%emt 0:00:24]} 30. Bf3 {[%emt 0:01:06]} Qa7 {[%emt 0:03:35]} 31. Qa5 {[%emt 0:01:50]} exf2+ {[%emt 0:00:22]} 32. Kh1 {[%emt 0:00:03]} Bd8 {[%emt 0:01:21]} 33. Qb5 {[%emt 0:01:15]} Bb6 {[%emt 0:00:01]} 34. Rexf2 {[%emt 0:00:31]} Rxb4 {[%emt 0:02:15]} 35. Qxb4 {[%emt 0:00:04]} Bxf2 {[%emt 0:00:06]} 36. Qxd6 {[%emt 0:00:11]} Bc5 {[%emt 0:00:08]} 37. Qc6 {[%emt 0:00:41]} Rf6 {[%emt 0:01:38]} 38. Re1 {[%emt 0:01:03]} Bf8 {[%emt 0:00:45]} 39. Qe8 {[%emt 0:00:37]} Qxa6 {[%emt 0:00:32]} 1/2-1/2

[Event "13th Palmanova Festival A 2024"]
[Site "Palmanova"]
[Date "2024.12.30"]
[Round "5.4"]
[White "Savanovic, Aleksandar"]
[Black "Zamengo, Fulvio"]
[Result "1-0"]
[ECO "C02"]
[WhiteElo "2354"]
[BlackElo "2348"]
[Annotator "RC"]
[PlyCount "71"]
[EventDate "2024.12.27"]
[EventCountry "ITA"]
[SourceTitle "playchess.com"]
[Source "ChessBase"]
[SourceQuality "1"]
[TimeControl "6000+30"]

1. e4 {[%emt 0:00:03]} e6 {[%emt 0:02:44]} 2. d4 {[%emt 0:00:08]} d5 {[%emt 0:00:03]} 3. e5 {[%emt 0:00:57]} c5 {[%emt 0:00:12]} 4. c3 {[%emt 0:00:07]} Nc6 {[%emt 0:01:09]} 5. Nf3 {[%emt 0:00:08]} Bd7 {[%emt 0:00:05]} 6. Be2 {[%emt 0:00:20]} Nge7 {[%emt 0:00:15]} 7. Na3 {[%emt 0:01:32]} cxd4 {[%emt 0:00:32]} 8. cxd4 {[%emt 0:00:08]} Nf5 {[%emt 0:00:05]} 9. Nc2 {[%emt 0:00:06]} Be7 {[%emt 0:00:22]} 10. O-O {[%emt 0:02:36]} h5 {[%emt 0:02:28]} 11. Bd3 {[%emt 0:14:51]} g5 {[%emt 0:00:33]} 12. g3 {[%emt 0:17:50]} Rg8 {[%emt 0:18:08]} 13. Bd2 {[%emt 0:09:44]} Qb6 {[%emt 0:02:01]} 14. Bc3 {[%emt 0:14:40]} a5 {[%emt 0:22:07]} 15. Ne3 {[%emt 0:07:52]} Nxe3 {[%emt 0:26:50]} 16. fxe3 {[%emt 0:00:07]} g4 {[%emt 0:00:04]} 17. Ne1 {[%emt 0:01:39]} a4 {[%emt 0:00:45]} 18. Ng2 {[%emt 0:02:39]} a3 {[%emt 0:00:33]} 19. b3 {[%emt 0:00:24]} Bg5 {[%emt 0:06:58]} 20. Qe2 {[%emt 0:01:20]} Ne7 {[%emt 0:03:08]} 21. Nf4 {[%emt 0:03:40]} h4 {[%emt 0:05:44]} 22. Rac1 {[%emt 0:06:07]} Rc8 {[%emt 0:08:57]} 23. Bd2 {[%emt 0:09:11]} Rxc1 {[%emt 0:01:53]} 24. Bxc1 {[%emt 0:00:06]} hxg3 {[%emt 0:00:02]} 25. hxg3 {[%emt 0:00:08]} Nf5 {[%emt 0:01:57]} 26. Kg2 {[%emt 0:01:45]} Be7 {[%emt 0:00:20]} 27. Rh1 {[%emt 0:01:30]} Bb4 {[%emt 0:02:56]} 28. Bd2 {[%emt 0:02:37]} Bf8 {[%emt 0:00:11]} 29. Kf2 {[%emt 0:01:48]} Ne7 {[%emt 0:02:21]} 30. Nh5 {[%emt 0:00:48]} Kd8 {[%emt 0:01:33]} 31. Nf6 {[%emt 0:00:16]} Rg6 {[%emt 0:00:30]} 32. Rh8 {[%emt 0:00:12]} Kc7 {[%emt 0:00:01]} 33. Rxf8 {[%emt 0:00:35]} Rh6 {[%emt 0:00:01]} 34. Kg2 {[%emt 0:00:29]} Qc6 {[%emt 0:01:29]} 35. Rxf7 {[%emt 0:00:42]} Kd8 {[%emt 0:00:01]} 36. Rxe7 {[%emt 0:00:44]} 1-0

[Event "13th Palmanova Festival A 2024"]
[Site "Palmanova"]
[Date "2024.12.30"]
[Round "5.5"]
[White "Hovhannisyan, Mher"]
[Black "Cina`, Vittorio"]
[Result "1/2-1/2"]
[ECO "E24"]
[WhiteElo "2397"]
[BlackElo "2325"]
[Annotator "ChessBase"]
[PlyCount "163"]
[EventDate "2024.12.27"]
[EventCountry "ITA"]
[SourceTitle "playchess.com"]
[Source "ChessBase"]
[SourceQuality "1"]
[TimeControl "6000+30"]

1. d4 {[%emt 0:03:28]} Nf6 {[%emt 0:00:06]} 2. c4 {[%emt 0:00:51]} e6 {[%emt 0:00:07]} 3. Nc3 {[%emt 0:00:55]} Bb4 {[%emt 0:00:08]} 4. a3 {[%emt 0:05:41]} Bxc3+ {[%emt 0:00:37]} 5. bxc3 {[%emt 0:02:51]} Nc6 {[%emt 0:00:13]} 6. f3 {[%emt 0:01:06]} b6 {[%emt 0:02:23]} 7. e4 {[%emt 0:09:01]} Ba6 {[%emt 0:01:51]} 8. Bg5 {[%emt 0:03:45]} h6 {[%emt 0:06:47]} 9. Bh4 {[%emt 0:00:21]} g5 {[%emt 0:01:40]} 10. Bf2 {[%emt 0:00:05]} Qe7 {[%emt 0:01:38]} 11. h4 {[%emt 0:09:12]} O-O-O {[%emt 0:05:06]} 12. c5 {[%emt 0:06:08]} Bxf1 {[%emt 0:04:58]} 13. Kxf1 {[%emt 0:00:07]} Nh5 {[%emt 0:01:08]} 14. cxb6 {[%emt 0:04:24]} axb6 {[%emt 0:01:12]} 15. c4 {[%emt 0:00:50]} e5 {[%emt 0:05:29]} 16. c5 {[%emt 0:06:02]} exd4 {[%emt 0:06:19]} 17. cxb6 {[%emt 0:01:02]} cxb6 {[%emt 0:00:06]} 18. Ne2 {[%emt 0:02:37]} Qe5 {[%emt 0:00:39]} 19. Rb1 {[%emt 0:08:21]} f5 {[%emt 0:07:44]} 20. Qb3 {[%emt 0:23:40]} Qa5 {[%emt 0:05:14]} 21. Nxd4 {[%emt 0:16:48]} Nxd4 {[%emt 0:03:07]} 22. Bxd4 {[%emt 0:00:05]} Ng3+ {[%emt 0:00:23]} 23. Kf2 {[%emt 0:00:08]} Qd2+ {[%emt 0:08:46]} 24. Kxg3 {[%emt 0:00:12]} Qf4+ {[%emt 0:00:05]} 25. Kf2 {[%emt 0:00:14]} Qd2+ {[%emt 0:00:05]} 26. Kf1 {[%emt 0:04:22]} Qxd4 {[%emt 0:00:06]} 27. Qxb6 {[%emt 0:00:24]} Qxb6 {[%emt 0:01:29]} 28. Rxb6 {[%emt 0:00:01]} Kc7 {[%emt 0:00:09]} 29. Rb4 {[%emt 0:00:41]} fxe4 {[%emt 0:01:58]} 30. fxe4 {[%emt 0:00:46]} Rdf8+ {[%emt 0:02:10]} 31. Ke2 {[%emt 0:00:25]} gxh4 {[%emt 0:00:38]} 32. Rc4+ {[%emt 0:00:41]} Kd8 {[%emt 0:00:22]} 33. Rxh4 {[%emt 0:00:28]} Rhg8 {[%emt 0:00:03]} 34. Rh2 {[%emt 0:00:57]} Rg4 {[%emt 0:00:04]} 35. Ra4 {[%emt 0:00:26]} Ke7 {[%emt 0:00:52]} 36. Ke3 {[%emt 0:00:09]} Rg3+ {[%emt 0:00:51]} 37. Kd4 {[%emt 0:00:11]} Rf6 {[%emt 0:00:21]} 38. Ra5 {[%emt 0:00:43]} Rfg6 {[%emt 0:01:32]} 39. Re5+ {[%emt 0:01:16]} Kf7 {[%emt 0:00:10]} 40. Rf5+ {[%emt 0:00:12]} Ke7 {[%emt 0:00:30]} 41. a4 {[%emt 0:00:00]} Rxg2 {[%emt 0:00:00]} 42. Rxg2 {[%emt 0:00:00]} Rxg2 {[%emt 0:00:00]} 43. a5 {[%emt 0:00:00]} Kd6 {[%emt 0:00:00]} 44. Rf6+ {[%emt 0:00:00]} Kc7 {[%emt 0:00:00]} 45. Rxh6 {[%emt 0:00:00]} Ra2 {[%emt 0:00:00]} 46. Rh5 {[%emt 0:00:00]} Ra4+ {[%emt 0:00:00]} 47. Ke3 {[%emt 0:00:00]} Kc6 {[%emt 0:00:00]} 48. Rd5 {[%emt 0:00:00]} Ra1 {[%emt 0:00:00]} 49. Kf4 {[%emt 0:00:00]} Ra2 {[%emt 0:00:00]} 50. Kf5 {[%emt 0:00:00]} Rf2+ {[%emt 0:00:00]} 51. Ke5 {[%emt 0:00:00]} Ra2 {[%emt 0:00:00]} 52. Kf6 {[%emt 0:01:18]} Ra4 {[%emt 0:00:00]} 53. Kf5 {[%emt 0:02:35]} Ra2 {[%emt 0:00:00]} 54. Kf4 {[%emt 0:02:09]} Ra3 {[%emt 0:00:00]} 55. Ke5 {[%emt 0:00:32]} Ra4 {[%emt 0:00:00]} 56. Rd6+ {[%emt 0:00:47]} Kc7 {[%emt 0:00:00]} 57. Rd5 {[%emt 0:01:10]} Kc6 {[%emt 0:00:00]} 58. Kf5 {[%emt 0:00:32]} Ra2 {[%emt 0:00:00]} 59. Kf6 {[%emt 0:00:40]} Ra4 {[%emt 0:00:00]} 60. Ke5 {[%emt 0:00:37]} Ra2 {[%emt 0:00:00]} 61. Kf4 {[%emt 0:00:17]} Ra4 {[%emt 0:00:00]} 62. Re5 {[%emt 0:00:06]} Ra3 {[%emt 0:00:00]} 63. Kf5 {[%emt 0:00:45]} Kd6 {[%emt 0:00:00]} 64. Kf6 {[%emt 0:00:28]} Ra4 {[%emt 0:00:00]} 65. Rd5+ {[%emt 0:00:47]} Kc6 {[%emt 0:00:00]} 66. Re5 {[%emt 0:00:23]} Kd6 {[%emt 0:00:00]} 67. Kf5 {[%emt 0:00:18]} Ra2 {[%emt 0:00:00]} 68. Rb5 {[%emt 0:00:44]} Kc6 {[%emt 0:00:00]} 69. Rd5 {[%emt 0:00:36]} Ra3 {[%emt 0:00:00]} 70. Kf4 {[%emt 0:00:33]} Ra4 {[%emt 0:00:00]} 71. Rf5 {[%emt 0:00:11]} Ra2 {[%emt 0:00:00]} 72. Rh5 {[%emt 0:00:13]} Ra1 {[%emt 0:00:00]} 73. Rg5 {[%emt 0:00:04]} Ra2 {[%emt 0:00:00]} 74. Rg6+ {[%emt 0:00:09]} Kc7 {[%emt 0:00:00]} 75. a6 {[%emt 0:00:54]} d6 {[%emt 0:00:00]} 76. Rg7+ {[%emt 0:00:25]} Kb6 {[%emt 0:00:00]} 77. Rb7+ {[%emt 0:01:31]} Kc6 {[%emt 0:00:00]} 78. Ra7 {[%emt 0:00:31]} Kb6 {[%emt 0:00:00]} 79. Ra8 {[%emt 0:00:33]} Rxa6 {[%emt 0:00:00]} 80. Rxa6+ {[%emt 0:00:28]} Kxa6 {[%emt 0:00:00]} 81. e5 {[%emt 0:00:15]} dxe5+ {[%emt 0:00:00]} 82. Kxe5 {[%emt 0:01:23]} 1/2-1/2

[Event "13th Palmanova Festival A 2024"]
[Site "Palmanova"]
[Date "2024.12.30"]
[Round "5.6"]
[White "Adharsh K"]
[Black "Gkoumas, Georgios"]
[Result "1/2-1/2"]
[ECO "B33"]
[WhiteElo "2235"]
[BlackElo "2449"]
[Annotator "RC"]
[PlyCount "65"]
[EventDate "2024.12.27"]
[EventCountry "ITA"]
[SourceTitle "playchess.com"]
[Source "ChessBase"]
[SourceQuality "1"]
[TimeControl "6000+30"]

1. e4 {[%emt 0:00:27]} c5 {[%emt 0:04:45]} 2. Nf3 {[%emt 0:00:07]} Nc6 {[%emt 0:00:04]} 3. d4 {[%emt 0:00:06]} cxd4 {[%emt 0:00:03]} 4. Nxd4 {[%emt 0:00:04]} Nf6 {[%emt 0:00:04]} 5. Nc3 {[%emt 0:00:07]} e5 {[%emt 0:00:02]} 6. Ndb5 {[%emt 0:00:14]} d6 {[%emt 0:00:04]} 7. Bg5 {[%emt 0:00:06]} a6 {[%emt 0:00:13]} 8. Na3 {[%emt 0:00:06]} b5 {[%emt 0:00:05]} 9. Nd5 {[%emt 0:00:04]} Be7 {[%emt 0:00:05]} 10. Bxf6 {[%emt 0:00:05]} Bxf6 {[%emt 0:00:06]} 11. c3 {[%emt 0:00:11]} O-O {[%emt 0:00:23]} 12. Nc2 {[%emt 0:03:24]} g6 {[%emt 0:00:50]} 13. Be2 {[%emt 0:03:33]} Bg7 {[%emt 0:00:41]} 14. O-O {[%emt 0:00:24]} f5 {[%emt 0:09:47]} 15. exf5 {[%emt 0:01:58]} gxf5 {[%emt 0:01:33]} 16. a4 {[%emt 0:00:07]} bxa4 {[%emt 0:00:36]} 17. Rxa4 {[%emt 0:05:50]} Kh8 {[%emt 0:07:53]} 18. Kh1 {[%emt 0:18:43]} Ra7 {[%emt 0:37:14]} 19. Qd2 {[%emt 0:06:55]} e4 {[%emt 0:03:50]} 20. f3 {[%emt 0:12:03]} exf3 {[%emt 0:03:37]} 21. Bxf3 {[%emt 0:04:59]} Ne5 {[%emt 0:00:29]} 22. Nd4 {[%emt 0:13:21]} Bd7 {[%emt 0:06:17]} 23. Raa1 {[%emt 0:00:25]} a5 {[%emt 0:04:13]} 24. b4 {[%emt 0:03:55]} Nxf3 {[%emt 0:08:15]} 25. Nxf3 {[%emt 0:03:28]} Bb5 {[%emt 0:08:45]} 26. Rfd1 {[%emt 0:05:58]} Bc6 {[%emt 0:00:15]} 27. Rab1 {[%emt 0:10:57]} Rb7 {[%emt 0:04:32]} 28. Qd3 {[%emt 0:04:16]} axb4 {[%emt 0:01:37]} 29. cxb4 {[%emt 0:00:36]} Qb8 {[%emt 0:01:14]} 30. Rbc1 {[%emt 0:01:48]} Bb5 {[%emt 0:03:11]} 31. Qc2 {[%emt 0:00:47]} Qa7 {[%emt 0:01:03]} 32. Re1 {[%emt 0:01:28]} Qa3 {[%emt 0:00:01]} 33. Nc7 {[%emt 0:03:49]} 1/2-1/2

[Event "13th Palmanova Festival A 2024"]
[Site "Palmanova"]
[Date "2024.12.30"]
[Round "5.7"]
[White "Domalchuk-Jonasson, Aleksandr"]
[Black "Bouska, Jiri"]
[Result "1/2-1/2"]
[ECO "D02"]
[WhiteElo "2377"]
[BlackElo "2267"]
[Annotator "ChessBase"]
[PlyCount "83"]
[EventDate "2024.12.27"]
[EventCountry "ITA"]
[SourceTitle "playchess.com"]
[Source "ChessBase"]
[SourceQuality "1"]
[TimeControl "6000+30"]

1. d4 {[%emt 0:02:08]} d5 {[%emt 0:02:21]} 2. Nf3 {[%emt 0:00:10]} Nf6 {[%emt 0:00:06]} 3. c3 {[%emt 0:00:12]} e6 {[%emt 0:00:47]} 4. Bf4 {[%emt 0:00:19]} c5 {[%emt 0:00:12]} 5. e3 {[%emt 0:00:18]} Bd6 {[%emt 0:00:13]} 6. Bb5+ {[%emt 0:00:40]} Nc6 {[%emt 0:01:00]} 7. Bxc6+ {[%emt 0:00:05]} bxc6 {[%emt 0:00:05]} 8. Bxd6 {[%emt 0:00:05]} Qxd6 {[%emt 0:00:06]} 9. Qa4 {[%emt 0:00:04]} O-O {[%emt 0:02:24]} 10. Qa3 {[%emt 0:00:08]} a5 {[%emt 0:09:25]} 11. O-O {[%emt 0:02:51]} Ba6 {[%emt 0:01:32]} 12. Rc1 {[%emt 0:00:24]} Nd7 {[%emt 0:03:16]} 13. Nbd2 {[%emt 0:01:38]} Be2 {[%emt 0:32:25]} 14. c4 {[%emt 0:23:28]} Rfc8 {[%emt 0:02:11]} 15. Rc2 {[%emt 0:09:24]} Qf8 {[%emt 0:13:30]} 16. Rac1 {[%emt 0:09:22]} Bxf3 {[%emt 0:06:30]} 17. Nxf3 {[%emt 0:00:13]} cxd4 {[%emt 0:00:40]} 18. Qxf8+ {[%emt 0:00:14]} Kxf8 {[%emt 0:01:06]} 19. cxd5 {[%emt 0:13:13]} exd5 {[%emt 0:00:09]} 20. Nxd4 {[%emt 0:11:21]} c5 {[%emt 0:00:13]} 21. Ne2 {[%emt 0:00:17]} Ra6 {[%emt 0:03:14]} 22. Rd1 {[%emt 0:03:44]} Rd6 {[%emt 0:03:10]} 23. Nd4 {[%emt 0:03:33]} Rb6 {[%emt 0:07:21]} 24. Nf5 {[%emt 0:10:21]} Nf6 {[%emt 0:00:14]} 25. Rdc1 {[%emt 0:00:07]} g6 {[%emt 0:01:21]} 26. Nd4 {[%emt 0:00:41]} Nd7 {[%emt 0:00:34]} 27. Ne2 {[%emt 0:01:55]} Rcb8 {[%emt 0:04:18]} 28. b3 {[%emt 0:00:17]} a4 {[%emt 0:07:05]} 29. bxa4 {[%emt 0:02:20]} Rb2 {[%emt 0:00:12]} 30. h3 {[%emt 0:04:08]} Rxc2 {[%emt 0:06:45]} 31. Rxc2 {[%emt 0:00:02]} Ke7 {[%emt 0:02:09]} 32. Rd2 {[%emt 0:06:43]} Kd6 {[%emt 0:00:06]} 33. Nc3 {[%emt 0:00:04]} Nf6 {[%emt 0:00:10]} 34. g4 {[%emt 0:00:52]} h6 {[%emt 0:00:58]} 35. Nxd5 {[%emt 0:00:43]} Nxd5 {[%emt 0:00:06]} 36. e4 {[%emt 0:00:04]} Ra8 {[%emt 0:00:09]} 37. exd5 {[%emt 0:01:25]} Rxa4 {[%emt 0:00:41]} 38. Kf1 {[%emt 0:00:34]} c4 {[%emt 0:00:06]} 39. Ke2 {[%emt 0:00:20]} c3 {[%emt 0:00:09]} 40. Rc2 {[%emt 0:00:12]} Kxd5 {[%emt 0:00:06]} 41. Kd3 {[%emt 0:00:13]} Ra3 {[%emt 0:00:07]} 42. Rxc3 {[%emt 0:02:21]} 1/2-1/2